bitfinex-derivatives/quotes_SOLF0:USTF0_20250509
["timestamp","ask_amount","ask_price","bid_price","bid_amount"]
[1746797067176,26.74,171.48,171.37,26.74]
[1746797067768,5.8352,171.4,171.37,26.74]
[1746797067987,26.74,171.42,171.31,1.0]
[1746797068373,5.8362,171.37,171.34,5.837]
[1746797068673,26.74,171.42,171.31,1.0]
[1746797068874,5.8356,171.39,171.36,5.8362]
[1746797069073,26.74,171.42,171.31,1.0]
[1746797069474,5.8354,171.4,171.37,5.836]
[1746797069674,26.74,171.42,171.31,1.0]
[1746797070576,5.8357,171.39,171.36,5.8364]
[1746797070972,26.74,171.42,171.31,1.0]
[1746797071174,5.8364,171.37,171.34,5.837]
[1746797071372,5.8364,171.37,171.31,1.0]
[1746797071571,26.74,171.42,171.31,1.0]
[1746797071774,5.8356,171.39,171.31,1.0]
[1746797071975,26.74,171.42,171.31,1.0]
[1746797073478,5.8356,171.39,171.36,5.8365]
[1746797073676,26.74,171.42,171.35,26.74]
[1746797073976,5.8352,171.4,171.37,5.8359]
[1746797074171,26.74,171.42,171.35,26.74]
[1746797074878,5.8354,171.4,171.36,5.8362]
[1746797075373,357.0,171.47,171.36,5.8362]
[1746797075674,26.74,171.46,171.37,5.8361]
[1746797075873,5.8357,171.39,171.34,26.74]
[1746797076076,26.74,171.45,171.34,26.74]
[1746797076285,38.407,171.45,171.31,27.74]
[1746797076579,38.407,171.45,171.33,5.8372]
[1746797077176,5.8366,171.36,171.33,5.8372]
[1746797077395,26.74,171.39,171.32,5.8378]
[1746797077677,5.8371,171.35,171.32,5.8378]
[1746797077979,26.74,171.39,171.31,1.0]
[1746797078275,5.8379,171.32,171.31,1.0]
[1746797081977,5.8376,171.33,171.31,1.0]
[1746797082275,26.74,171.34,171.31,6.8382]
[1746797082881,32.5773,171.34,171.31,6.8382]
[1746797083379,32.5773,171.34,171.32,5.8378]
[1746797083679,32.5773,171.34,171.31,1.0]
[1746797083881,32.5773,171.34,171.31,6.8379]
[1746797084781,26.74,171.34,171.32,5.8378]
[1746797084985,462.18,171.41,171.31,1.0]
[1746797085284,26.74,171.39,171.31,1.0]
[1746797085777,26.74,171.39,171.31,6.8381]
[1746797086282,26.74,171.39,171.31,1.0]
[1746797086586,5.8371,171.35,171.32,5.8378]
[1746797087183,5.8373,171.34,171.32,5.8378]
[1746797087384,5.8373,171.34,171.31,6.8381]
[1746797088388,5.8375,171.33,171.31,6.8381]
[1746797088692,5.8375,171.33,171.31,1.0]
[1746797089188,5.8379,171.32,171.31,1.0]
[1746797090286,5.8377,171.33,171.31,1.0]
[1746797090485,43.81544983,171.38,171.31,1.0]
[1746797090687,26.74,171.37,171.31,1.0]
[1746797091585,5.8379,171.32,171.31,1.0]
[1746797094288,26.74,171.37,171.31,1.0]
[1746797094690,5.8365,171.36,171.31,1.0]
[1746797094882,26.74,171.37,171.31,1.0]
[1746797095079,357.0,171.4,171.31,1.0]
[1746797095283,383.74,171.4,171.31,1.0]
[1746797095485,26.74,171.41,171.31,1.0]
[1746797095792,26.74,171.42,171.32,3.8239]
[1746797096185,26.74,171.42,171.41,5.8348]
[1746797096702,26.74,171.42,171.35,26.74]
[1746797097303,32.5538,171.44,171.35,26.74]
[1746797097692,5.8342,171.43,171.35,26.74]
[1746797098197,5.8342,171.43,171.38,5.8357]
[1746797098492,26.72,171.44,171.35,27.74]
[1746797098693,26.72,171.44,171.38,5.8356]
[1746797098893,5.8346,171.42,171.38,5.8356]
[1746797099689,5.8349,171.41,171.38,5.8356]
[1746797099889,26.72,171.44,171.37,5.836]
[1746797100300,26.72,171.44,171.35,1.0]
[1746797100692,5.8357,171.39,171.35,1.0]
[1746797100893,26.72,171.44,171.35,6.8366]
[1746797101290,5.8358,171.39,171.35,6.8366]
[1746797101897,5.8359,171.38,171.35,6.8366]
[1746797102291,26.72,171.44,171.35,1.0]
[1746797102799,17.07544983,171.43,171.35,1.0]
[1746797102992,5.8365,171.36,171.35,1.0]
[1746797103297,26.72,171.37,171.31,1.0]
[1746797103500,26.72,171.36,171.31,1.0]
[1746797104199,5.8377,171.33,171.31,1.0]
[1746797105002,5.8373,171.34,171.31,6.8382]
[1746797105298,26.72,171.37,171.31,1.0]
[1746797105497,32.5563,171.37,171.34,5.8369]
[1746797105694,26.72,171.37,171.31,1.0]
[1746797106900,26.72,171.37,171.31,2.8702]
[1746797107801,5.8359,171.38,171.34,5.8369]
[1746797109101,5.8359,171.38,171.35,5.8368]
[1746797109698,357.0,171.47,171.31,2.8702]
[1746797109699,1.01565806,171.51,171.36,26.72]
[1746797109901,357.0,171.52,171.37,1.858]
[1746797110108,383.72,171.52,171.37,1.858]
[1746797110407,383.72,171.52,171.38,1.9699]
[1746797110804,5.8325,171.48,171.39,26.72]
[1746797111201,383.72,171.52,171.39,26.72]
[1746797111405,383.72,171.52,171.4,1.9226]
[1746797111607,26.72,171.52,171.4,1.9226]
[1746797111808,479.33544983,171.58,171.49,5.8318]
[1746797112003,26.7,171.57,171.49,5.8318]
[1746797112314,5.8309,171.53,171.49,5.8318]
[1746797112506,26.7,171.56,171.45,26.7]
[1746797113105,26.7,171.57,171.46,1.9361]
[1746797113507,5.8301,171.55,171.5,5.8315]
[1746797113707,488.96,171.58,171.46,1.9361]
[1746797114208,5.831,171.53,171.47,5.8324]
[1746797114404,488.96,171.58,171.47,5.8324]
[1746797114709,488.96,171.58,171.46,28.6361]
[1746797115108,5.8313,171.52,171.48,5.8324]
[1746797115409,488.96,171.58,171.48,5.8324]
[1746797115614,488.96,171.58,171.46,28.6361]
[1746797116504,17.07544983,171.55,171.4,28.6226]
[1746797116704,26.7,171.54,171.4,28.6226]
[1746797117324,5.8328,171.47,171.43,5.8339]
[1746797117512,5.8328,171.47,171.4,28.6226]
[1746797117813,5.8323,171.49,171.44,5.8337]
[1746797118612,5.8323,171.49,171.45,5.8333]
[1746797118912,5.8318,171.5,171.4,28.6226]
[1746797119214,26.7,171.54,171.4,28.6226]
[1746797119411,5.8314,171.52,171.4,28.6226]
[1746797119613,26.68,171.53,171.4,28.6226]
[1746797119809,5.8319,171.5,171.46,5.833]
[1746797120014,26.68,171.53,171.46,5.833]
[1746797120215,26.68,171.53,171.4,28.6226]
[1746797120412,5.8317,171.51,171.4,28.6226]
[1746797120916,5.8318,171.5,171.46,5.8329]
[1746797121320,26.68,171.53,171.47,5.8327]
[1746797121630,26.68,171.54,171.44,26.68]
[1746797122016,5.8324,171.49,171.44,26.68]
[1746797122419,26.68,171.54,171.46,5.8329]
[1746797122916,26.68,171.54,171.44,26.68]
[1746797123318,26.68,171.54,171.45,1.9367]
[1746797123518,383.68,171.57,171.45,1.9367]
[1746797123725,26.68,171.57,171.45,1.9367]
[1746797124127,5.831,171.53,171.49,5.8319]
[1746797124322,357.0,171.64,171.48,26.68]
[1746797124529,26.68,171.62,171.49,3.8024]
[1746797124823,5.8303,171.55,171.49,3.8024]
[1746797125228,26.68,171.62,171.49,3.8024]
[1746797126128,5.831,171.53,171.5,5.8315]
[1746797126426,26.68,171.58,171.49,3.8024]
[1746797126827,5.8306,171.54,171.51,5.8312]
[1746797127528,5.8309,171.53,171.5,5.8316]
[1746797127832,26.68,171.58,171.49,3.8024]
[1746797128330,5.8307,171.54,171.51,5.8312]
[1746797128530,26.68,171.58,171.49,3.8024]
[1746797128829,357.0,171.64,171.49,3.8024]
[1746797129032,26.68,171.62,171.49,3.8024]
[1746797129332,26.68,171.62,171.53,5.8304]
[1746797129727,357.0,171.64,171.49,3.8024]
[1746797129934,461.96,171.66,171.5,26.66]
[1746797130329,488.62,171.66,171.5,38.3233]
[1746797130535,26.66,171.66,171.5,26.66]
[1746797130839,26.66,171.66,171.51,11.6626]
[1746797131039,5.8272,171.64,171.52,1.8719]
[1746797131228,26.66,171.66,171.52,1.8719]
[1746797131441,5.8268,171.65,171.62,5.8276]
[1746797131634,5.8268,171.65,171.58,26.66]
[1746797132035,5.827,171.64,171.58,26.66]
[1746797132630,5.827,171.64,171.6,5.8281]
[1746797132925,5.8274,171.63,171.6,5.8281]
[1746797133536,26.66,171.68,171.6,5.8281]
[1746797133537,5.8271,171.64,171.6,5.8281]
[1746797133829,17.07544983,171.7,171.58,26.66]
[1746797134037,5.8257,171.68,171.59,3.7557]
[1746797134231,5.8257,171.68,171.59,5.6453]
[1746797134431,5.8257,171.68,171.65,5.8266]
[1746797134735,5.8257,171.68,171.62,26.66]
[1746797135138,26.66,171.7,171.62,26.66]
[1746797135432,478.95544983,171.75,171.62,26.66]
[1746797135736,26.64,171.74,171.62,26.66]
[1746797135936,478.95544983,171.75,171.62,26.66]
[1746797136335,26.64,171.74,171.62,26.66]
[1746797136739,26.64,171.74,171.59,5.6453]
[1746797136931,17.07544983,171.71,171.62,5.8275]
[1746797137137,26.64,171.7,171.6,26.64]
[1746797137536,5.8262,171.67,171.63,5.8271]
[1746797137735,26.64,171.7,171.6,26.64]
[1746797138042,5.8269,171.65,171.61,5.8279]
[1746797138348,26.64,171.7,171.61,5.8279]
[1746797138940,26.64,171.7,171.6,32.4682]
[1746797139244,26.64,171.7,171.6,5.8282]
[1746797139743,26.64,171.7,171.59,3.7557]
[1746797139940,17.07544983,171.71,171.59,3.7557]
[1746797140147,26.64,171.7,171.62,5.8274]
[1746797140844,26.64,171.7,171.61,5.8279]
[1746797141343,26.64,171.7,171.59,3.7557]
[1746797141851,5.8266,171.66,171.59,3.7557]
[1746797142349,5.8267,171.65,171.63,5.8273]
[1746797142848,5.8264,171.66,171.63,5.8273]
[1746797143048,26.64,171.7,171.62,5.8276]
[1746797143343,26.64,171.7,171.59,3.7557]
[1746797143541,5.8266,171.66,171.63,5.8272]
[1746797144145,5.8266,171.66,171.64,5.8269]
[1746797144448,26.64,171.68,171.59,3.7557]
[1746797144745,17.07544983,171.67,171.57,5.8291]
[1746797145047,17.07544983,171.67,171.51,26.64]
[1746797145247,17.07544983,171.67,171.47,461.54]
[1746797145248,17.07544983,171.67,171.48,1.888]
[1746797145446,17.07544983,171.67,171.49,26.62]
[1746797145847,5.8294,171.57,171.54,5.8301]
[1746797146040,5.8294,171.57,171.49,26.62]
[1746797146749,5.8291,171.58,171.54,5.8301]
[1746797147052,5.8291,171.58,171.49,26.62]
[1746797147745,5.8291,171.58,171.55,5.8298]
[1746797148149,5.8288,171.59,171.49,26.62]
[1746797148944,357.0,171.66,171.49,26.62]
[1746797149251,26.62,171.65,171.49,26.62]
[1746797149440,5.8275,171.63,171.59,5.8285]
[1746797149646,5.8275,171.63,171.53,26.62]
[1746797149845,26.62,171.63,171.54,3.8097]
[1746797150448,26.62,171.63,171.57,5.8291]
[1746797150943,5.8282,171.61,171.54,3.8097]
[1746797151138,26.62,171.64,171.54,3.8097]
[1746797151345,5.8276,171.63,171.54,3.8097]
[1746797151544,26.62,171.64,171.54,3.8097]
[1746797151947,32.4471,171.64,171.54,3.8097]
[1746797152147,32.4471,171.64,171.55,1.9585]
[1746797152750,5.8274,171.63,171.55,1.9585]
[1746797153047,383.62,171.66,171.55,1.9585]
[1746797153253,5.826,171.67,171.63,5.827]
[1746797153549,5.826,171.67,171.55,1.9585]
[1746797153550,26.62,171.69,171.59,26.62]
[1746797153947,5.8272,171.64,171.6,5.8282]
[1746797154245,26.62,171.69,171.59,26.62]
[1746797154450,26.62,171.69,171.55,28.5785]
[1746797154852,11.6513,171.68,171.55,26.62]
[1746797155044,26.62,171.69,171.54,3.8097]
[1746797155252,17.07544983,171.65,171.51,26.62]
[1746797155450,5.8299,171.56,171.5,30.4198]
[1746797156247,5.8294,171.57,171.5,30.4198]
[1746797156944,17.07544983,171.65,171.5,30.4198]
[1746797157149,26.62,171.64,171.5,30.4198]
[1746797157550,26.62,171.64,171.5,92.4198]
[1746797158154,26.62,171.64,171.5,109.49524983]
[1746797158954,26.62,171.64,171.51,11.6627]
[1746797159252,26.62,171.66,171.54,17.07544983]
[1746797159452,5.8275,171.63,171.59,5.8284]
[1746797159646,5.8275,171.63,171.55,28.5886]
[1746797159851,26.62,171.66,171.55,28.5886]
[1746797160154,26.62,171.66,171.6,5.8281]
[1746797160362,26.62,171.66,171.55,28.5886]
[1746797160551,5.8274,171.63,171.55,28.5886]
[1746797160953,26.62,171.66,171.55,28.5886]
[1746797161257,5.8277,171.62,171.59,5.8284]
[1746797162057,5.8274,171.63,171.6,5.8283]
[1746797162952,26.62,171.66,171.55,28.5886]
[1746797163153,26.62,171.69,171.55,28.5886]
[1746797163451,5.8272,171.64,171.55,28.5886]
[1746797163651,26.6,171.67,171.55,28.5886]
[1746797164451,5.8267,171.65,171.62,5.8274]
[1746797164657,110.92587037,171.73,171.59,26.6]
[1746797164957,26.6,171.72,171.59,26.6]
[1746797165156,26.6,171.72,171.6,1.8582]
[1746797165558,5.8267,171.65,171.62,5.8274]
[1746797165755,26.6,171.67,171.55,1.9686]
[1746797166667,26.6,171.68,171.55,1.9686]
[1746797167759,5.8273,171.64,171.55,1.9686]
[1746797167960,26.6,171.68,171.55,1.9686]
[1746797168267,5.8272,171.64,171.61,5.828]
[1746797168860,5.8273,171.63,171.6,5.8282]
[1746797169557,5.8277,171.62,171.59,5.8286]
[1746797170159,5.8274,171.63,171.6,5.8282]
[1746797170455,26.6,171.64,171.56,26.6]
[1746797170657,26.6,171.64,171.55,1.9686]
[1746797171059,26.6,171.64,171.57,5.8291]
[1746797172055,26.6,171.64,171.53,1.8582]
[1746797172260,17.07544983,171.61,171.5,1.0]
[1746797172457,17.07544983,171.61,171.5,6.8316]
[1746797172458,5.8308,171.53,171.5,6.8316]
[1746797173350,26.6,171.56,171.5,1.0]
[1746797173751,5.8314,171.51,171.5,1.0]
[1746797173957,26.6,171.56,171.5,1.0]
[1746797174259,5.829,171.59,171.55,5.8299]
[1746797174454,26.6,171.6,171.5,1.0]
[1746797174967,5.8293,171.57,171.53,5.8307]
[1746797175156,26.6,171.6,171.53,5.8307]
[1746797175352,26.6,171.6,171.5,1.0]
[1746797176566,32.4285,171.6,171.56,5.8295]
[1746797176763,26.6,171.6,171.5,1.0]
[1746797176961,26.6,171.6,171.5,2.9574]
[1746797177172,5.829,171.58,171.55,5.83]
[1746797177857,5.8288,171.59,171.56,5.8296]
[1746797178160,26.6,171.6,171.53,26.6]
[1746797178359,818.52,171.64,171.53,26.6]
[1746797178671,26.6,171.63,171.53,26.6]
[1746797178865,26.6,171.63,171.54,3.8579]
[1746797179256,26.6,171.63,171.61,5.8277]
[1746797179763,26.6,171.63,171.54,3.8579]
[1746797180966,5.8289,171.59,171.54,9.6882]
[1746797181370,26.6,171.63,171.54,9.6882]
[1746797181570,26.6,171.63,171.55,5.8299]
[1746797182067,26.6,171.63,171.54,3.8579]
[1746797182374,26.6,171.63,171.54,9.6882]
[1746797183067,5.8295,171.57,171.54,9.6882]
[1746797183466,26.6,171.63,171.53,5.8306]
[1746797183661,5.8302,171.55,171.51,26.6]
[1746797184065,26.6,171.59,171.52,5.8308]
[1746797184267,26.6,171.59,171.5,1.0]
[1746797184463,26.6,171.59,171.51,5.8314]
[1746797184760,5.8305,171.54,171.51,5.8314]
[1746797185066,26.6,171.59,171.5,1.0]
[1746797185867,5.8305,171.54,171.51,5.8314]
[1746797186467,5.8308,171.53,171.5,6.8316]
[1746797186666,17.07544983,171.62,171.5,1.0]
[1746797186967,26.58,171.61,171.5,27.58]
[1746797187474,26.58,171.61,171.5,44.65544983]
[1746797187670,26.58,171.64,171.5,44.65544983]
[1746797187981,5.829,171.58,171.55,5.8298]
[1746797188269,26.58,171.64,171.5,44.65544983]
[1746797188478,5.8286,171.6,171.5,27.58]
[1746797188671,26.58,171.64,171.5,27.58]
[1746797188974,5.8284,171.6,171.57,5.8293]
[1746797189573,5.8281,171.61,171.54,26.58]
[1746797190066,26.58,171.63,171.54,26.58]
[1746797191172,5.8282,171.61,171.54,26.58]
[1746797192671,5.8283,171.6,171.57,5.8292]
[1746797192971,26.58,171.63,171.57,5.8292]
[1746797193271,26.58,171.63,171.54,26.58]
[1746797193867,5.8285,171.6,171.54,26.58]
[1746797194374,5.8285,171.6,171.56,5.8294]
[1746797194671,5.8285,171.6,171.54,26.58]
[1746797194881,26.58,171.63,171.59,5.8287]
[1746797195069,26.58,171.63,171.54,26.58]
[1746797195377,5.8295,171.57,171.54,32.4102]
[1746797195876,5.8295,171.57,171.54,5.8302]
[1746797196674,5.8297,171.56,171.53,7.6668]
[1746797196928,26.58,171.63,171.53,1.8362]
[1746797197079,43.65544983,171.63,171.48,1.9292]
[1746797197270,357.0,171.62,171.48,28.5092]
[1746797197471,368.6557,171.62,171.48,28.5092]
[1746797197670,368.6557,171.62,171.48,26.58]
[1746797197876,5.8309,171.53,171.5,6.8315]
[1746797198075,26.58,171.57,171.5,1.0]
[1746797198475,5.8313,171.52,171.5,1.0]
[1746797198676,26.58,171.57,171.5,1.0]
[1746797199177,5.8304,171.54,171.5,1.0]
[1746797199377,26.58,171.57,171.5,1.0]
[1746797201180,5.8314,171.51,171.5,1.0]
[1746797206887,11.6577,171.59,171.5,1.0]
[1746797207186,26.58,171.58,171.5,1.0]
[1746797207380,5.8305,171.54,171.5,1.0]
[1746797207582,26.58,171.58,171.5,1.0]
[1746797207984,5.8306,171.54,171.5,1.0]
[1746797208485,5.8306,171.54,171.51,5.8312]
[1746797208786,5.8299,171.56,171.5,1.0]
[1746797209086,818.66,171.62,171.5,1.0]
[1746797209275,357.0,171.62,171.51,1.8746]
[1746797209479,357.0,171.62,171.54,5.8301]
[1746797210289,357.0,171.62,171.53,5.8306]
[1746797210784,357.0,171.62,171.52,26.58]
[1746797210991,357.0,171.62,171.53,1.875]
[1746797211388,5.8283,171.61,171.57,5.8291]
[1746797211584,26.58,171.63,171.57,5.8291]
[1746797211882,26.58,171.63,171.56,26.56]
[1746797212077,5.8288,171.59,171.56,32.3897]
[1746797212485,26.56,171.64,171.56,32.3897]
[1746797212684,26.56,171.65,171.56,26.56]
[1746797213197,5.8288,171.59,171.56,32.3895]
[1746797213387,26.56,171.65,171.56,26.56]
[1746797214191,26.56,171.65,171.56,32.3896]
[1746797214393,26.56,171.64,171.56,32.3896]
[1746797214790,43.63544983,171.64,171.51,1.8746]
[1746797214992,43.63544983,171.64,171.51,28.4346]
[1746797215293,5.8299,171.56,171.53,5.8307]
[1746797215488,26.56,171.6,171.53,5.8307]
[1746797215896,26.56,171.6,171.52,5.831]
[1746797216109,26.56,171.6,171.51,26.56]
[1746797216595,26.56,171.6,171.52,5.8308]
[1746797217099,26.56,171.6,171.51,5.8312]
[1746797217392,43.63544983,171.6,171.49,30.3357]
[1746797217584,5.8301,171.55,171.52,5.8308]
[1746797217783,43.63544983,171.6,171.49,30.3357]
[1746797218190,43.63544983,171.6,171.49,3.7757]
[1746797218391,5.8304,171.54,171.51,5.8312]
[1746797219389,26.56,171.6,171.49,3.7757]
[1746797220287,26.56,171.6,171.5,6.8317]
[1746797220496,26.56,171.6,171.5,1.0]
[1746797220896,5.8311,171.52,171.5,6.8317]
[1746797221593,26.56,171.6,171.5,1.0]
[1746797221794,374.07544983,171.63,171.5,1.0]
[1746797222091,26.56,171.62,171.5,27.56]
[1746797222696,26.56,171.62,171.5,1.0]
[1746797222900,5.8314,171.51,171.5,1.0]
[1746797223096,5.8314,171.51,171.5,2.0]
[1746797224193,5.8312,171.52,171.5,2.0]
[1746797224904,5.8309,171.53,171.5,7.8317]
[1746797225121,26.56,171.56,171.5,2.0]
[1746797225399,5.8311,171.52,171.5,2.0]
[1746797225601,26.56,171.56,171.5,2.0]
[1746797225901,5.8314,171.51,171.5,2.0]
[1746797226704,26.56,171.57,171.5,2.0]
[1746797226898,26.56,171.57,171.51,5.8314]
[1746797227098,5.8306,171.54,171.51,5.8314]
[1746797227396,26.56,171.57,171.5,2.0]
[1746797227597,5.8302,171.55,171.5,2.0]
[1746797228101,5.8302,171.55,171.52,5.8308]
[1746797228897,5.8302,171.55,171.5,2.0]
[1746797229098,5.8305,171.54,171.5,2.0]
[1746797229501,5.8307,171.53,171.51,5.8313]
[1746797230322,5.8305,171.54,171.51,5.8313]
[1746797230703,26.56,171.58,171.5,7.8316]
[1746797230898,5.8314,171.51,171.5,2.0]
[1746797232900,43.61544983,171.54,171.39,26.54]
[1746797233108,357.0,171.53,171.37,5.7666]
[1746797233306,17.07544983,171.5,171.4,5.8351]
[1746797233505,5.8344,171.43,171.4,5.8351]
[1746797234000,26.54,171.49,171.39,5.8353]
[1746797234197,26.54,171.49,171.37,3.8106]
[1746797234401,5.8357,171.39,171.32,1.956]
[1746797234603,26.54,171.42,171.32,28.496]
[1746797235305,5.8357,171.39,171.35,5.8368]
[1746797236206,5.8352,171.4,171.32,28.496]
[1746797236900,5.8352,171.4,171.36,5.8362]
[1746797237105,26.54,171.42,171.32,28.496]
[1746797237505,5.8352,171.4,171.32,28.496]
[1746797238007,5.8352,171.4,171.36,5.8363]
[1746797239008,5.8352,171.4,171.37,5.8361]
[1746797239905,26.54,171.42,171.32,28.496]
[1746797240404,5.8351,171.4,171.37,5.8359]
[1746797240806,26.54,171.42,171.32,28.496]
[1746797241007,5.8349,171.41,171.32,28.496]
[1746797241507,5.8353,171.4,171.32,28.496]
[1746797242108,5.8353,171.4,171.36,5.8362]
[1746797242308,5.8353,171.4,171.32,28.496]
[1746797242609,5.8353,171.4,171.37,5.8361]
[1746797243309,5.8356,171.39,171.36,5.8364]
[1746797244010,26.54,171.42,171.36,5.8364]
[1746797244608,5.8355,171.39,171.36,5.8364]
[1746797245312,5.8362,171.37,171.34,5.8368]
[1746797245510,26.54,171.42,171.32,1.956]
[1746797246031,5.8364,171.37,171.33,5.8372]
[1746797246207,5.8364,171.37,171.32,1.956]
[1746797246813,5.8365,171.37,171.32,1.956]
[1746797247014,26.54,171.42,171.31,1.0]
[1746797247516,5.8364,171.37,171.33,5.8373]
[1746797247813,26.54,171.38,171.31,1.0]
[1746797248409,26.54,171.41,171.31,1.0]
[1746797248712,5.8359,171.38,171.35,5.8367]
[1746797249513,5.8356,171.39,171.35,5.8367]
[1746797249809,26.54,171.41,171.32,26.54]
[1746797250214,5.8352,171.4,171.32,26.54]
[1746797250409,26.54,171.41,171.32,26.54]
[1746797250610,5.8356,171.39,171.32,26.54]
[1746797250812,5.8356,171.39,171.36,5.8364]
[1746797251313,5.8359,171.38,171.32,26.54]
[1746797252212,26.54,171.41,171.31,1.0]
[1746797253116,5.8364,171.37,171.34,5.8372]
[1746797253616,26.54,171.41,171.31,1.0]
[1746797254715,5.8362,171.37,171.34,5.837]
[1746797255212,26.54,171.41,171.31,1.0]
[1746797255816,5.8367,171.36,171.33,5.8374]
[1746797256519,5.8367,171.36,171.34,5.8371]
[1746797257321,26.54,171.37,171.31,1.0]
[1746797257818,374.07544983,171.44,171.31,1.0]
[1746797258022,357.0,171.44,171.32,26.54]
[1746797258217,26.54,171.45,171.32,26.54]
[1746797258518,32.3737,171.45,171.41,5.8345]
[1746797258718,26.54,171.45,171.36,26.54]
[1746797258919,26.54,171.45,171.34,26.54]
[1746797259124,5.8348,171.41,171.37,5.8361]
[1746797259324,26.54,171.41,171.31,1.0]
[1746797259619,5.8359,171.38,171.35,5.8366]
[1746797260019,26.54,171.41,171.31,27.54]
[1746797260723,26.54,171.45,171.31,27.54]
[1746797261114,26.54,171.45,171.32,62.0]
[1746797261818,5.835,171.41,171.32,62.0]
[1746797262017,26.54,171.45,171.32,62.0]
[1746797262415,357.0,171.48,171.32,62.0]
[1746797262721,28.73644983,171.54,171.32,62.0]
[1746797262722,357.0,171.55,171.35,17.07544983]
[1746797262915,26.54,171.54,171.36,28.4538]
[1746797263317,5.8337,171.45,171.37,3.789]
[1746797263823,5.8337,171.45,171.41,5.8345]
[1746797264432,5.8337,171.45,171.42,5.8343]
[1746797265019,26.54,171.47,171.37,3.789]
[1746797265320,17.07544983,171.68,171.46,17.07544983]
[1746797265527,5.8264,171.66,171.5,17.07544983]
[1746797265719,17.07544983,171.68,171.51,26.52]
[1746797265915,82.20222054,171.62,171.51,88.52]
[1746797266521,82.20222054,171.62,171.5,17.07544983]
[1746797266724,82.20222054,171.62,171.51,26.52]
[1746797267323,26.52,171.63,171.51,26.52]
[1746797267928,32.3476,171.63,171.55,5.8299]
[1746797268423,5.8278,171.62,171.55,5.8299]
[1746797268724,26.52,171.63,171.55,5.8299]
[1746797269825,5.8284,171.6,171.54,5.8303]
[1746797270028,26.52,171.63,171.54,5.8303]
[1746797270324,5.8291,171.58,171.52,26.52]
[1746797270929,5.8291,171.58,171.47,5.7337]
[1746797270930,5.8301,171.55,171.47,32.2337]
[1746797271426,5.8307,171.54,171.49,5.8318]
[1746797272026,5.8307,171.54,171.47,32.2337]
[1746797272027,26.5,171.55,171.47,32.2337]
[1746797272527,5.8309,171.53,171.48,5.8322]
[1746797272753,26.5,171.55,171.48,5.8322]
[1746797273231,26.5,171.55,171.49,5.8319]
[1746797273232,5.8307,171.53,171.49,5.8319]
[1746797273430,26.5,171.59,171.47,32.2337]
[1746797273932,26.5,171.59,171.53,5.8304]
[1746797274128,26.5,171.59,171.51,26.5]